bitfinex-derivatives/quotes_SOLF0:USTF0_20250329
["timestamp","ask_amount","ask_price","bid_price","bid_amount"]
[1743282401250,37.6078,124.0,123.96,8.0696]
[1743282401940,8.0678,124.0,123.96,8.0696]
[1743282402142,29.54,123.99,123.97,0.05079736]
[1743282402342,29.6002746,123.99,123.97,0.05079736]
[1743282402754,37.6685746,123.99,123.97,0.05079736]
[1743282404158,8.0688,123.98,123.97,0.05079736]
[1743282405050,37.6286746,123.99,123.97,0.05079736]
[1743282405551,37.6086746,123.99,123.97,0.05079736]
[1743282408153,8.0688,123.98,123.97,0.05079736]
[1743282408353,5.03662043,123.98,123.86,376.36729304]
[1743282408553,11.36729304,123.96,123.86,35.195]
[1743282408857,8.0718,123.94,123.9,8.0739]
[1743282409461,0.054416,123.93,123.91,0.05945415]
[1743282411054,8.126616,123.93,123.91,0.05945415]
[1743282411558,37.4927,123.92,123.86,5.755]
[1743282412156,37.4927,123.92,123.88,8.0751]
[1743282412353,29.42,123.92,123.86,5.755]
[1743282412848,8.13474717,123.9,123.88,0.05564045]
[1743282413461,0.06034717,123.9,123.88,0.05564045]
[1743282415263,8.13464717,123.9,123.88,0.05564045]
[1743282419162,0.06034717,123.9,123.88,8.13074045]
[1743282420168,0.06034717,123.9,123.88,0.05564045]
[1743282422377,8.13444717,123.9,123.88,0.05564045]
[1743282427681,0.06034717,123.9,123.88,0.05564045]
[1743282429385,8.13434717,123.9,123.88,0.05564045]
[1743282429882,8.0747,123.89,123.88,0.05564045]
[1743282430081,29.38,123.89,123.83,36.6830551]
[1743282430283,29.38,123.89,123.83,7.2830551]
[1743282430684,7.2830551,123.92,123.82,5.7958]
[1743282430875,29.42,123.92,123.85,7.2830551]
[1743282431282,0.05356057,123.9,123.87,8.12981558]
[1743282431584,0.05356057,123.9,123.87,0.05391558]
[1743282431884,37.4751,123.89,123.87,0.05391558]
[1743282434681,29.4,123.89,123.87,0.05391558]
[1743282435587,0.05356057,123.9,123.87,0.05391558]
[1743282435887,0.05356057,123.9,123.87,7.33697068]
[1743282436285,0.05356057,123.9,123.88,2.9718]
[1743282436585,266.26,123.93,123.91,8.0731]
[1743282436780,29.48,123.95,123.89,7.2830551]
[1743282436985,7.2830551,123.96,123.89,7.2830551]
[1743282437288,44.8334551,123.96,123.9,8.45]
[1743282437888,0.05416932,123.94,123.92,8.12709368]
[1743282438890,0.05416932,123.94,123.93,8.0721]
[1743282439988,0.05416932,123.94,123.92,8.12759368]
[1743282441292,0.05416932,123.94,123.93,8.0721]
[1743282443091,0.05416932,123.94,123.92,0.05499368]
[1743282443285,29.47416932,123.94,123.92,0.05499368]
[1743282445696,29.47416932,123.94,123.92,8.12769368]
[1743282446197,0.05416932,123.94,123.93,8.0721]
[1743282447797,0.05416932,123.94,123.93,15.3551551]
[1743282448100,295.7,123.99,123.96,8.0696]
[1743282448300,295.7,123.99,123.93,10.0988551]
[1743282448501,295.7,123.99,123.96,8.0696]
[1743282448700,8.0665,124.02,123.97,7.2830551]
[1743282448900,29.42,124.02,123.97,7.2830551]
[1743282449200,0.05233263,124.01,123.98,8.12291834]
[1743282449600,0.05233263,124.01,123.98,0.05461834]
[1743282450499,0.05233263,124.01,123.99,8.0677]
[1743282452001,0.05233263,124.01,123.98,0.05461834]
[1743282452403,0.05233263,124.01,124.0,8.0675]
[1743282454404,303.6646,124.05,123.99,10.3576551]
[1743282454702,29.38,124.05,123.99,10.3576551]
[1743282454901,29.38,124.05,124.02,8.0659]
[1743282455597,29.44086166,124.05,124.02,8.11911118]
[1743282456005,29.44086166,124.05,124.02,0.05321118]
[1743282457808,37.50536166,124.05,124.02,8.11941118]
[1743282459309,37.50536166,124.05,124.02,0.05321118]
[1743282461411,29.44086166,124.05,124.02,0.05321118]
[1743282462308,37.50566166,124.05,124.02,0.05321118]
[1743282463812,37.50566166,124.05,124.02,8.11891118]
[1743282464409,29.44086166,124.05,124.02,0.05321118]
[1743282464712,7.2830551,124.04,124.02,0.05321118]
[1743282465112,8.0656,124.03,124.02,0.05321118]
[1743282467315,15.3481551,124.04,124.02,0.05321118]
[1743282467716,7.2830551,124.04,124.02,0.05321118]
[1743282468816,8.0656,124.03,124.02,0.05321118]
[1743282469908,8.0671,124.01,123.96,1.43048446]
[1743282470315,8.0671,124.01,123.98,8.0684]
[1743282470616,29.34,124.02,123.97,7.2830551]
[1743282470819,7.2830551,124.04,123.99,8.0676]
[1743282471008,0.05744277,124.02,123.99,0.05314606]
[1743282471213,0.05744277,124.02,124.01,8.0669]
[1743282477719,37.4046,124.05,124.02,8.0657]
[1743282479023,37.46355848,124.05,124.02,8.12747386]
[1743282480523,8.12355848,124.05,124.02,8.12747386]
[1743282481620,0.05895848,124.05,124.03,8.0655]
[1743282483328,7.34201358,124.05,124.02,0.06177386]
[1743282483522,7.2830551,124.03,124.02,0.06177386]
[1743282483921,7.34201358,124.05,124.02,0.06177386]
[1743282484426,8.0654,124.04,124.02,0.06177386]
[1743282486523,37.4056,124.03,124.02,0.06177386]
[1743282490933,44.6886551,124.03,124.02,0.06177386]
[1743282491225,29.34,124.03,124.02,0.06177386]
[1743282491825,29.34,124.03,124.02,8.12797386]
[1743282492426,29.34,124.03,124.02,0.06177386]
[1743282494419,37.4051,124.04,124.02,0.06177386]
[1743282495328,5.05064459,124.03,124.02,0.06177386]
[1743282496328,5.05064459,124.03,124.02,8.12797386]
[1743282496828,5.05064459,124.03,124.02,0.06177386]
[1743282497324,8.12355848,124.05,124.02,0.06177386]
[1743282497526,5.0518528,124.04,124.02,0.06177386]
[1743282497727,8.12355848,124.05,124.02,0.06177386]
[1743282497927,5.05138353,124.04,124.02,0.06177386]
[1743282498125,8.12355848,124.05,124.02,0.06177386]
[1743282498329,5.05079412,124.04,124.02,8.12797386]
[1743282498527,8.12355848,124.05,124.02,8.12797386]
[1743282498832,5.05102338,124.04,124.02,8.12797386]
[1743282499026,8.12355848,124.05,124.02,8.12797386]
[1743282499234,5.04948666,124.04,124.03,8.0654]
[1743282499823,0.05895848,124.05,124.02,0.06177386]
[1743282500436,0.05895848,124.05,124.03,8.0651]
[1743282500828,0.05895848,124.05,124.02,0.06177386]
[1743282502035,0.05895848,124.05,124.04,8.0649]
[1743282502929,11.10739345,124.12,124.04,29.34]
[1743282503134,5.04867207,124.11,124.06,7.2830551]
[1743282503333,11.10739345,124.12,124.08,7.2830551]
[1743282503635,11.10739345,124.12,124.11,8.0604]
[1743282503935,11.10739345,124.12,124.08,7.2830551]
[1743282504137,11.10739345,124.12,124.1,0.05131103]
[1743282504434,11.10739345,124.12,124.1,8.11201103]
[1743282504936,11.10739345,124.12,124.1,0.05131103]
[1743282505534,0.0611665,124.13,124.1,8.11171103]
[1743282508131,0.0611665,124.13,124.11,8.0602]
[1743282508437,44.48262226,124.19,124.12,7.2830551]
[1743282508937,8.0553,124.19,124.12,7.2830551]
[1743282509438,0.05366029,124.17,124.14,8.11789165]
[1743282509738,7.2830551,124.16,124.14,0.05999165]
[1743282510638,8.0578,124.15,124.14,0.05999165]
[1743282510936,7.2830551,124.16,124.14,0.05999165]
[1743282511736,15.3403551,124.16,124.14,0.05999165]
[1743282511931,7.2830551,124.16,124.14,0.05999165]
[1743282512236,29.37366029,124.17,124.14,0.05999165]
[1743282513442,29.37366029,124.17,124.15,8.0577]
[1743282513637,0.05366029,124.17,124.14,0.05999165]
[1743282514142,0.05366029,124.17,124.15,8.0574]
[1743282515345,0.05366029,124.17,124.16,8.0571]
[1743282517044,0.05366029,124.17,124.15,8.0575]
[1743282519348,0.05366029,124.17,124.14,8.11799165]
[1743282519645,0.05366029,124.17,124.14,0.05999165]
[1743282519848,0.05366029,124.17,124.16,8.0571]
[1743282526549,7.2830551,124.22,124.17,8.0559]
[1743282526751,36.5830551,124.22,124.15,7.2830551]
[1743282527348,8.0539,124.21,124.17,8.0559]
[1743282527648,0.05764737,124.2,124.18,0.05471055]
[1743282528052,0.05764737,124.2,124.18,8.11031055]
[1743282529254,0.05764737,124.2,124.18,0.05471055]
[1743282529755,8.11264737,124.2,124.18,0.05471055]
[1743282530453,8.0552,124.19,124.18,0.05471055]
[1743282531853,15.39540247,124.2,124.18,0.05471055]
[1743282532052,8.11234737,124.2,124.18,0.05471055]
[1743282534158,0.05764737,124.2,124.18,0.05471055]
[1743282535048,8.11234737,124.2,124.18,0.05471055]
[1743282535256,29.3,124.19,124.18,0.05471055]
[1743282536453,37.3552,124.19,124.18,0.05471055]
[1743282542759,29.3,124.19,124.12,2.9513]
[1743282542956,36.5830551,124.19,124.12,10.2343551]
[1743282543559,8.0565,124.17,124.13,8.0588]
[1743282544057,0.05338164,124.16,124.14,0.06017683]
[1743282546366,0.05338164,124.16,124.14,8.11827683]
[1743282546569,8.0553,124.19,124.15,29.3]
[1743282546765,36.5830551,124.23,124.16,7.2830551]
[1743282546965,7.2830551,124.21,124.15,37.3576]
[1743282547266,8.0557,124.19,124.15,37.3576]
[1743282547560,8.0557,124.19,124.16,0.05155647]
[1743282547766,0.05837665,124.18,124.16,0.05155647]
[1743282548667,0.05837665,124.18,124.16,8.10865647]
[1743282551775,0.05837665,124.18,124.17,8.0565]
[1743282552276,0.05837665,124.18,124.16,8.10835647]
[1743282553276,7.2830551,124.21,124.16,0.05155647]
[1743282553570,295.22,124.24,124.16,7.33461157]
[1743282553774,5.04947024,124.23,124.22,8.0532]
[1743282553966,5.05022727,124.23,124.18,36.5830551]
[1743282554274,7.2830551,124.25,124.19,2.5396]
[1743282554470,0.05170335,124.22,124.2,8.0541]
[1743282555076,0.05170335,124.22,124.21,8.0539]
[1743282557476,0.05170335,124.22,124.2,8.0542]
[1743282562685,0.05170335,124.22,124.21,8.0539]
[1743282563580,0.05170335,124.22,124.2,8.0543]
[1743282566587,0.05170335,124.22,124.19,5.11442054]
[1743282567884,8.10510335,124.22,124.19,13.16952054]
[1743282569088,0.05170335,124.22,124.19,13.16952054]
[1743282569291,0.05170335,124.22,124.2,8.0544]
[1743282571889,0.05170335,124.22,124.19,13.16932054]
[1743282573389,0.05170335,124.22,124.2,8.0545]
[1743282573595,0.05170335,124.22,124.19,5.11442054]
[1743282573989,7.2830551,124.21,124.19,0.05342054]
[1743282574396,8.0545,124.2,124.19,0.05342054]
[1743282579498,7.2830551,124.21,124.18,8.47]
[1743282579690,7.2830551,124.21,124.14,5.034]
[1743282579691,7.2830551,124.19,124.14,5.034]
[1743282579892,7.2830551,124.17,124.14,5.034]
[1743282580398,15.3398551,124.17,124.14,5.034]
[1743282580788,15.39917478,124.17,124.14,5.09106931]
[1743282580992,15.39917478,124.17,124.14,13.14936931]
[1743282582201,7.34237478,124.17,124.14,13.14936931]
[1743282582507,0.05931968,124.17,124.15,8.0578]
[1743282583301,29.28,124.2,124.16,8.0571]
[1743282583499,265.6,124.22,124.16,7.2830551]
[1743282583700,42.37786602,124.21,124.17,8.0562]
[1743282583904,36.5630551,124.21,124.17,8.0562]
[1743282584396,0.04867538,124.2,124.18,0.05474806]
[1743282584799,8.10357538,124.2,124.18,0.05474806]
[1743282595005,0.04867538,124.2,124.18,8.11024806]
[1743282595305,0.04867538,124.2,124.18,0.05474806]
[1743282595607,0.04867538,124.2,124.19,8.0552]
[1743282599511,0.04867538,124.2,124.18,8.11024806]
[1743282603414,0.04867538,124.2,124.19,8.0552]
[1743282604314,0.04867538,124.2,124.18,8.11024806]
[1743282606611,272.9430551,124.25,124.18,7.33780316]
[1743282606817,5.05611148,124.24,124.18,36.61780316]
[1743282607111,5.05611148,124.23,124.2,8.054]
[1743282607310,8.0523,124.24,124.18,36.5630551]
[1743282607511,5.05533277,124.23,124.18,36.5630551]
[1743282607709,8.0523,124.24,124.18,36.5630551]
[1743282607913,5.05543969,124.23,124.19,0.05962258]
[1743282608114,310.2746551,124.25,124.19,0.05962258]
[1743282608322,310.2746551,124.25,124.2,7.2830551]
[1743282608512,5.0555254,124.24,124.2,7.2830551]
[1743282608815,37.3303,124.27,124.24,8.0516]
[1743282609013,5.05639486,124.26,124.24,8.0516]
[1743282609213,5.05639486,124.25,124.24,8.10453827]
[1743282610415,8.0503,124.27,124.24,8.10453827]
[1743282610615,5.06834992,124.26,124.25,8.0513]
[1743282610920,29.28,124.29,124.24,7.33599337]
[1743282611119,5.06947421,124.28,124.24,7.33599337]
[1743282611319,8.0494,124.28,124.25,8.0509]
[1743282612617,8.0494,124.28,124.24,7.33599337]
[1743282612618,8.0488,124.29,124.26,8.0506]
[1743282612816,29.26,124.29,124.26,8.0506]
[1743282613016,302.1630551,124.31,124.26,8.0506]
[1743282613216,5.0627824,124.3,124.26,8.0506]
[1743282613416,5.0627824,124.29,124.27,0.06028994]
[1743282613616,8.0484,124.3,124.27,0.06028994]
[1743282613820,5.0573136,124.29,124.27,0.06028994]
[1743282614015,8.0489,124.29,124.27,0.06028994]
[1743282618222,37.3083,124.3,124.27,0.06028994]
[1743282618522,265.62,124.31,124.27,0.06028994]
[1743282618727,294.88,124.31,124.28,7.2830551]
[1743282618920,8.0472,124.32,124.28,7.2830551]
[1743282619329,8.0472,124.32,124.29,0.05310649]
[1743282619829,8.0472,124.32,124.29,8.10160649]
[1743282620127,8.0462,124.33,124.29,0.05310649]
[1743282620328,37.3062,124.33,124.29,0.05310649]
[1743282620525,37.3062,124.33,124.3,8.048]
[1743282620722,8.0462,124.33,124.3,8.048]
[1743282621430,8.0468,124.32,124.29,8.10160649]
[1743282622126,9.8310551,124.35,124.29,8.10160649]
[1743282622127,272.8030551,124.37,124.3,7.2830551]
[1743282622532,29.26,124.36,124.32,0.05381403]
[1743282623133,265.52,124.37,124.32,7.33686913]
[1743282623333,7.2830551,124.36,124.32,0.05381403]
[1743282623926,8.045,124.35,124.32,0.05381403]
[1743282624336,8.045,124.35,124.32,8.10011403]
[1743282625036,29.24,124.36,124.33,8.0461]
[1743282625037,37.2844,124.36,124.33,8.0461]
[1743282625237,36.5230551,124.36,124.32,0.05381403]
[1743282625440,8.0458,124.34,124.32,0.05381403]
[1743282626035,37.2846,124.36,124.33,8.0458]
[1743282626230,265.52,124.37,124.33,8.0458]
[1743282626435,29.24,124.38,124.33,8.0458]
[1743282627340,8.044,124.37,124.33,8.0458]
[1743282627639,29.24,124.38,124.34,7.2830551]
[1743282627840,7.2830551,124.42,124.34,7.2830551]
[1743282628042,29.24,124.41,124.35,0.05840235]
[1743282628237,29.24,124.41,124.36,8.0438]
[1743282628538,29.24,124.4,124.36,8.0438]
[1743282628940,29.24,124.4,124.37,0.05536367]
[1743282629140,8.0424,124.39,124.37,0.05536367]
[1743282629640,8.0396,124.44,124.4,8.0413]
[1743282629842,29.24,124.45,124.4,7.2830551]
[1743282630037,29.24,124.45,124.41,0.05591674]
[1743282630438,8.0391,124.44,124.41,0.05591674]
[1743282630942,8.0397,124.43,124.41,0.05591674]
[1743282631844,37.2788,124.45,124.41,0.05591674]
[1743282632039,29.24,124.45,124.41,0.05591674]
[1743282632444,8.0394,124.44,124.41,0.05591674]
[1743282634847,8.0397,124.43,124.41,0.05591674]
[1743282635241,7.2830551,124.43,124.41,0.05591674]
[1743282635440,272.6630551,124.49,124.41,0.05591674]
[1743282635642,272.6630551,124.49,124.4,7.2830551]
[1743282635643,29.22,124.48,124.4,7.2830551]
[1743282635837,29.22,124.48,124.44,0.05803295]
[1743282636734,8.0384,124.45,124.44,0.05803295]
[1743282636935,44.5414551,124.45,124.44,0.05803295]
[1743282638440,8.0416,124.4,124.36,7.2830551]
[1743282639141,8.0416,124.4,124.36,15.3269551]
[1743282639743,0.05144203,124.39,124.37,0.05765407]
[1743282640749,0.05144203,124.39,124.37,8.10105407]
[1743282641045,8.09394203,124.39,124.37,0.05765407]
[1743282642139,0.05144203,124.39,124.37,0.05765407]
[1743282643750,0.05144203,124.39,124.37,8.10065407]
[1743282644049,0.05144203,124.39,124.37,0.05765407]
[1743282645051,8.09374203,124.39,124.37,0.05765407]
[1743282645251,0.05144203,124.39,124.37,0.05765407]
[1743282645655,8.09394203,124.39,124.37,0.05765407]
[1743282649455,8.0429,124.38,124.37,0.05765407]
[1743282650553,0.05144203,124.39,124.37,0.05765407]
[1743282650759,29.22,124.43,124.38,7.2830551]
[1743282650957,29.22,124.43,124.39,8.042]
[1743282651159,37.2603,124.43,124.39,8.042]
[1743282651355,29.22,124.43,124.39,8.042]
[1743282651951,29.22,124.43,124.4,0.05555649]
[1743282652362,8.0404,124.42,124.4,0.05555649]
[1743282652758,29.22,124.43,124.4,0.05555649]
[1743282653664,8.0403,124.42,124.4,0.05555649]
[1743282654262,29.22,124.43,124.4,0.05555649]
[1743282655059,8.0409,124.41,124.4,0.05555649]
[1743282656967,8.0407,124.42,124.4,0.05555649]
[1743282657165,29.2,124.43,124.4,0.05555649]
[1743282657765,8.0408,124.42,124.4,0.05555649]
[1743282658965,8.0409,124.41,124.4,0.05555649]
[1743282661572,29.2,124.43,124.4,0.05555649]
[1743282662465,37.2397,124.43,124.4,8.09675649]
[1743282663073,29.2,124.43,124.41,8.0409]
[1743282663776,29.2,124.43,124.4,0.05555649]
[1743282664171,8.0403,124.42,124.4,0.05555649]
[1743282664573,29.2,124.43,124.4,0.05555649]
[1743282664873,8.0396,124.44,124.41,8.0409]
[1743282665063,37.2396,124.44,124.41,8.0409]
[1743282667974,29.2,124.44,124.4,0.05555649]
[1743282668177,7.2830551,124.41,124.4,0.05555649]
[1743282668480,41.54150009,124.41,124.33,7.2830551]
[1743282668674,7.2830551,124.39,124.33,7.2830551]
[1743282668875,29.2,124.38,124.33,7.2830551]
[1743282669374,8.10536758,124.37,124.34,0.06078002]
[1743282670479,8.0442,124.36,124.34,0.06078002]
[1743282671278,8.10526758,124.37,124.34,0.06078002]
[1743282672376,8.0443,124.36,124.34,0.06078002]
[1743282673178,0.06146758,124.37,124.34,0.06078002]
[1743282673379,0.06146758,124.37,124.35,7.2830551]
[1743282673883,0.06146758,124.37,124.36,8.0442]
[1743282674479,13.39469345,124.46,124.36,8.04]
[1743282674779,5.0677039,124.45,124.39,7.2830551]
[1743282674971,40.30739345,124.46,124.39,7.2830551]
[1743282674972,13.1072039,124.44,124.39,7.2830551]
[1743282675170,29.2,124.46,124.4,8.0414]
[1743282675372,8.0394,124.44,124.39,7.2830551]
[1743282675577,8.0394,124.44,124.42,0.05131205]
[1743282676177,7.2830551,124.47,124.42,0.05131205]
[1743282676371,5.06687757,124.46,124.42,0.05131205]
[1743282676679,5.06687757,124.45,124.42,0.05131205]
[1743282676876,8.0393,124.44,124.42,0.05131205]
[1743282677975,8.0397,124.43,124.42,0.05131205]
[1743282678378,29.2,124.47,124.42,0.05131205]
[1743282678578,5.06394183,124.46,124.42,0.05131205]
[1743282678783,5.06394183,124.45,124.42,0.05131205]
[1743282679079,29.2,124.47,124.42,0.05131205]
[1743282679280,5.06268832,124.46,124.42,0.05131205]
[1743282679486,5.06268832,124.45,124.42,0.05131205]
[1743282679680,8.0393,124.44,124.42,0.05131205]
[1743282680677,8.0397,124.43,124.42,0.05131205]
[1743282681374,8.0393,124.44,124.42,0.05131205]
[1743282682680,8.0397,124.43,124.42,0.05131205]
[1743282684786,8.0393,124.44,124.42,0.05131205]
[1743282684986,29.2,124.46,124.42,0.05131205]
[1743282686886,8.0374,124.47,124.44,8.0389]
[1743282687288,8.0374,124.47,124.44,8.09721791]
[1743282687887,29.18,124.48,124.46,8.0376]
[1743282688085,13.67613261,124.53,124.44,0.05831791]
[1743282688291,29.18,124.52,124.44,29.18]
[1743282688484,29.18,124.52,124.47,0.052348]
[1743282688685,5.05870556,124.51,124.47,0.052348]
[1743282688989,29.18,124.52,124.47,0.052348]
[1743282689189,5.05558958,124.51,124.47,0.052348]
[1743282689391,8.0355,124.5,124.47,8.089248]
[1743282691093,8.0347,124.51,124.48,8.0364]
[1743282691696,8.034,124.52,124.49,8.0357]
[1743282691897,29.18,124.53,124.47,0.052348]
[1743282692099,5.0510484,124.52,124.47,0.052348]
[1743282692297,8.0355,124.5,124.47,0.052348]
[1743282693803,8.0355,124.5,124.47,8.089248]
[1743282697712,8.0341,124.52,124.47,29.232348]
[1743282697908,31.6839,124.54,124.47,29.232348]
[1743282698203,8.0347,124.51,124.48,8.0361]
[1743282698609,8.0347,124.51,124.48,8.09377594]
[1743282698809,8.0341,124.52,124.48,8.09377594]
[1743282699909,29.18,124.53,124.48,0.05767594]
[1743282700111,7.21089353,124.52,124.48,0.05767594]
[1743282700509,8.0349,124.51,124.48,8.09397594]
[1743282701312,8.0352,124.5,124.48,0.05767594]
[1743282701715,7.21089353,124.52,124.48,0.05767594]
[1743282702509,8.0352,124.5,124.48,0.05767594]
[1743282704118,8.0347,124.51,124.48,8.09397594]
[1743282705518,7.21089353,124.52,124.48,0.05767594]
[1743282706921,15.24509353,124.52,124.48,0.05767594]
[1743282707120,36.37089353,124.54,124.48,0.05767594]
[1743282707719,8.0339,124.52,124.49,8.0354]
[1743282708017,7.21089353,124.54,124.48,0.05767594]
[1743282708217,17.55569353,124.56,124.5,7.21089353]
[1743282708414,7.21089353,124.59,124.52,7.21089353]
[1743282708620,5.03078696,124.6,124.52,36.44378353]
[1743282708824,8.0297,124.59,124.55,8.0315]
[1743282709119,7.21089353,124.6,124.55,0.05679645]
[1743282709422,8.0303,124.58,124.55,0.05679645]
[1743282709717,36.41089353,124.6,124.55,0.05679645]
[1743282710120,7.21089353,124.58,124.55,0.05679645]
[1743282710324,7.21089353,124.56,124.55,0.05679645]
[1743282710520,36.43089353,124.56,124.55,0.05679645]
[1743282710721,36.43089353,124.56,124.49,29.22]
[1743282711019,29.22,124.56,124.48,2.3535]
[1743282711221,29.22,124.56,124.48,10.3896]
[1743282711523,31.6412,124.56,124.48,10.3896]
[1743282711920,8.0339,124.52,124.51,0.05219918]
[1743282721325,0.05670789,124.53,124.51,0.05219918]
[1743282721918,8.09030789,124.53,124.51,0.05219918]
[1743282722525,8.0338,124.52,124.51,0.05219918]
[1743282722925,8.09030789,124.53,124.51,0.05219918]
[1743282723633,8.0338,124.52,124.51,0.05219918]
[1743282726434,8.09010789,124.53,124.51,0.05219918]
[1743282727335,0.05670789,124.53,124.51,0.05219918]
[1743282727929,0.05670789,124.53,124.52,8.0338]
[1743282729332,0.05670789,124.53,124.51,8.08639918]
[1743282730528,0.05670789,124.53,124.52,8.0338]
[1743282732535,29.16,124.57,124.55,8.0317]
[1743282732736,29.18,124.59,124.55,8.0317]
[1743282733039,5.06317255,124.58,124.55,8.0317]
[1743282733237,5.06317255,124.57,124.55,8.0317]
[1743282733438,8.0297,124.59,124.55,8.0317]
[1743282733640,11.26706288,124.57,124.5,33.9659]
[1743282733838,5.06110272,124.56,124.48,29.18]
[1743282734041,34.24110272,124.55,124.48,29.18]
[1743282734342,5.06110272,124.54,124.5,8.0348]
[1743282734544,5.06081439,124.53,124.47,2.4108]
[1743282734741,8.0334,124.53,124.49,8.0354]
[1743282734936,0.05525589,124.51,124.49,8.08841386]
[1743282735441,0.05525589,124.51,124.5,8.0351]
[1743282736443,0.05525589,124.51,124.49,8.08841386]
[1743282736939,0.05525589,124.51,124.5,8.0351]
[1743282738939,0.05525589,124.51,124.49,0.05301386]
[1743282739453,5.06312697,124.5,124.49,0.05301386]
[1743282739634,5.06332008,124.5,124.44,2.3503]
[1743282739839,29.18,124.52,124.44,2.3503]
[1743282740042,5.06330343,124.51,124.48,8.036]
[1743282740242,37.214,124.52,124.48,8.036]
[1743282740444,5.06372781,124.51,124.48,8.036]
[1743282740651,0.06165499,124.51,124.48,8.09725808]
[1743282740841,0.06165499,124.51,124.48,0.06125808]
[1743282741339,8.09655499,124.51,124.48,0.06125808]
[1743282744443,8.09655499,124.51,124.48,8.09755808]
[1743282748141,0.06165499,124.51,124.48,0.06125808]
[1743282748346,5.06160146,124.5,124.48,0.06125808]
[1743282748543,0.06165499,124.51,124.48,0.06125808]
[1743282748744,0.06165499,124.51,124.49,8.0354]
[1743282750560,8.09625499,124.51,124.48,8.09745808]
[1743282750857,15.31087329,124.51,124.48,0.06125808]
[1743282751051,15.31087329,124.51,124.48,8.09735808]
[1743282752049,7.2146183,124.49,124.48,0.06125808]
[1743282752248,36.3746183,124.49,124.48,0.06125808]
[1743282752657,29.16,124.49,124.48,0.06125808]
[1743282753155,29.16,124.49,124.48,8.09765808]
[1743282753359,29.16,124.5,124.48,0.06125808]
[1743282753960,29.16,124.5,124.49,8.0358]
[1743282754354,0.06165499,124.51,124.5,8.0351]
[1743282756157,7.2146183,124.55,124.48,2.44065808]
[1743282756363,36.4146183,124.57,124.49,8.63892962]
[1743282756560,5.07152715,124.56,124.51,7.2146183]
[1743282756756,5.07152715,124.55,124.51,7.2146183]
[1743282756957,36.4146183,124.57,124.54,8.0321]
[1743282757156,5.07154315,124.56,124.51,7.2146183]
[1743282757366,36.46123306,124.57,124.54,0.06090552]
[1743282757656,7.2146183,124.55,124.54,0.05076721]
[1743282758364,12.28485042,124.55,124.54,0.05076721]
[1743282759568,5.07023212,124.55,124.54,8.08336721]
[1743282759769,0.04661476,124.57,124.54,0.05076721]
[1743282760561,0.04661476,124.57,124.56,8.0313]
[1743282762161,36.4146183,124.59,124.58,8.03]
[1743282762367,5.06817489,124.59,124.58,8.03]
[1743282762668,36.4146183,124.61,124.54,2.3517]
[1743282762972,5.06655774,124.6,124.54,31.5317]
[1743282763162,29.2,124.61,124.54,31.5317]
[1743282763363,29.18,124.61,124.56,0.0548777]
[1743282764170,8.0264,124.64,124.56,0.0548777]
[1743282764369,34.24241659,124.63,124.55,1.42320176]
[1743282764674,29.2,124.62,124.59,8.0801239]
[1743282764870,11.25304232,124.65,124.59,0.0511239]
[1743282765064,34.23909333,124.64,124.59,0.0511239]
[1743282765264,8.0285,124.61,124.59,0.0511239]
[1743282765470,37.2285,124.61,124.59,0.0511239]
[1743282765664,29.2,124.61,124.59,0.0511239]
[1743282766373,29.2,124.63,124.59,0.0511239]
[1743282766574,37.2268,124.63,124.6,8.0287]
[1743282766771,37.2268,124.63,124.59,0.0511239]
[1743282766964,29.2,124.63,124.59,0.0511239]
[1743282767165,8.0277,124.62,124.59,0.0511239]
[1743282767864,37.227,124.63,124.59,8.0804239]
[1743282768274,37.227,124.63,124.59,0.0511239]
[1743282769166,37.227,124.63,124.59,8.0801239]
[1743282770268,8.0277,124.62,124.59,8.0801239]
[1743282770567,29.2,124.63,124.59,0.0511239]
[1743282770767,8.0287,124.6,124.59,0.0511239]
[1743282770969,37.1887,124.6,124.59,0.0511239]
[1743282773072,29.14,124.62,124.59,0.0511239]
[1743282773574,29.14,124.62,124.6,8.0283]
[1743282773767,29.14,124.62,124.59,0.0511239]
[1743282774873,8.0284,124.61,124.59,0.0511239]
[1743282775767,29.14,124.62,124.59,0.0511239]
[1743282777274,8.0287,124.6,124.59,0.0511239]
[1743282779570,40.39304232,124.62,124.53,2.2278]
[1743282779774,8.0309,124.57,124.53,2.2278]
[1743282779975,29.14,124.57,124.53,2.2278]